[Event "Titled Tuesday Blitz November 15 Early 2022"]
[White "Saya, Ethan"]
[Black "Kopczynski, Michal"]
[WhiteFideId "26095181"]
[BlackFideId "1124200"]
[WhiteElo "2162"]
[BlackElo "2235"]
[Result "1-0"]
[Round "08"]
[TimeControl "180+1"]
[Date "2022.11.16"]
[WhiteClock "0:00:20"]
[BlackClock "0:00:03"]

1. d4 {[%clk 0:03:00]}  Nf6 {[%clk 0:02:57]} 2. c4 {[%clk 0:03:00]}  g6 {[%clk 0:02:58]} 3. g3 {[%clk 0:02:54]}  Bg7 {[%clk 0:02:58]} 4. Bg2 {[%clk 0:02:54]}  d6 {[%clk 0:02:59]} 5. Nf3 {[%clk 0:02:53]}  O-O {[%clk 0:02:59]} 6. O-O {[%clk 0:02:53]}  Nc6 {[%clk 0:03:00]} 7. d5 {[%clk 0:02:37]}  Nb8 {[%clk 0:02:58]} 8. Nc3 {[%clk 0:02:36]}  e5 {[%clk 0:02:58]} 9. dxe6 {[%clk 0:02:35]}  fxe6 {[%clk 0:02:57]} 10. Rb1 {[%clk 0:02:10]}  Nc6 {[%clk 0:02:54]} 11. b4 {[%clk 0:02:08]}  Ne7 {[%clk 0:02:51]} 12. a4 {[%clk 0:02:04]}  e5 {[%clk 0:02:49]} 13. Ba3 {[%clk 0:01:56]}  Bf5 {[%clk 0:02:49]} 14. Rc1 {[%clk 0:01:56]}  Qd7 {[%clk 0:02:48]} 15. b5 {[%clk 0:01:43]}  Bh3 {[%clk 0:02:45]} 16. c5 {[%clk 0:01:42]}  Bxg2 {[%clk 0:02:45]} 17. Kxg2 {[%clk 0:01:43]}  e4 {[%clk 0:02:41]} 18. Nd4 {[%clk 0:01:38]}  d5 {[%clk 0:02:40]} 19. c6 {[%clk 0:01:34]}  bxc6 {[%clk 0:02:35]} 20. Bxe7 {[%clk 0:01:34]}  Qxe7 {[%clk 0:02:33]} 21. Nxc6 {[%clk 0:01:34]}  Qf7 {[%clk 0:01:52]} 22. Nxd5 {[%clk 0:01:32]}  Ng4 {[%clk 0:01:38]} 23. Nf4 {[%clk 0:00:59]}  g5 {[%clk 0:01:29]} 24. Nh3 {[%clk 0:00:59]}  h6 {[%clk 0:00:56]} 25. Qd5 {[%clk 0:00:58]}  Rae8 {[%clk 0:00:48]} 26. Qxf7+ {[%clk 0:00:56]}  Rxf7 {[%clk 0:00:49]} 27. Rfd1 {[%clk 0:00:47]}  Ref8 {[%clk 0:00:41]} 28. Rd8 {[%clk 0:00:41]}  Rxd8 {[%clk 0:00:28]} 29. Nxd8 {[%clk 0:00:42]}  Be5 {[%clk 0:00:27]} 30. Nxf7 {[%clk 0:00:41]}  Kxf7 {[%clk 0:00:26]} 31. Rc6 {[%clk 0:00:38]}  Ke7 {[%clk 0:00:21]} 32. e3 {[%clk 0:00:35]}  Bd6 {[%clk 0:00:17]} 33. Ra6 {[%clk 0:00:33]}  Bc5 {[%clk 0:00:15]} 34. Ng1 {[%clk 0:00:25]}  Ne5 {[%clk 0:00:13]} 35. Rxh6 {[%clk 0:00:24]}  Nd3 {[%clk 0:00:12]} 36. h4 {[%clk 0:00:23]}  gxh4 {[%clk 0:00:11]} 37. gxh4 {[%clk 0:00:24]}  Ne1+ {[%clk 0:00:10]} 38. Kf1 {[%clk 0:00:24]}  Nd3 {[%clk 0:00:09]} 39. h5 {[%clk 0:00:24]}  Nb2 {[%clk 0:00:06]} 40. Rc6 {[%clk 0:00:22]}  Bd6 {[%clk 0:00:06]} 41. h6 {[%clk 0:00:21]}  Be5 {[%clk 0:00:06]} 42. h7 {[%clk 0:00:21]}  Nxa4 {[%clk 0:00:05]} 43. Rxc7+ {[%clk 0:00:20]}  Bxc7 {[%clk 0:00:03]} 44. h8=Q {[%clk 0:00:20]} 1-0


[Site "https://www.chess.com"]

[Event "Titled Tuesday Blitz November 15 Early 2022"]
[White "Shapiro, Daniel"]
[Black "Wagner, Dennis"]
[WhiteFideId "2001780"]
[BlackFideId "24650684"]
[WhiteElo "2319"]
[BlackElo "2470"]
[Result "0-1"]
[Round "08"]
[TimeControl "180+1"]
[Date "2022.11.16"]
[WhiteClock "0:00:02"]
[BlackClock "0:00:24"]

1. d4 {[%clk 0:02:55]}  Nf6 {[%clk 0:02:59]} 2. c4 {[%clk 0:02:55]}  e6 {[%clk 0:02:59]} 3. g3 {[%clk 0:02:54]}  d5 {[%clk 0:02:59]} 4. Nf3 {[%clk 0:02:54]}  Be7 {[%clk 0:02:59]} 5. Bg2 {[%clk 0:02:54]}  O-O {[%clk 0:02:59]} 6. O-O {[%clk 0:02:54]}  dxc4 {[%clk 0:03:00]} 7. Ne5 {[%clk 0:02:54]}  Nc6 {[%clk 0:02:59]} 8. Bxc6 {[%clk 0:02:54]}  bxc6 {[%clk 0:03:00]} 9. Nxc6 {[%clk 0:02:54]}  Qe8 {[%clk 0:03:00]} 10. Nxe7+ {[%clk 0:02:55]}  Qxe7 {[%clk 0:03:01]} 11. Qa4 {[%clk 0:02:55]}  e5 {[%clk 0:02:52]} 12. dxe5 {[%clk 0:02:53]}  Qxe5 {[%clk 0:02:52]} 13. Qxc4 {[%clk 0:02:54]}  Bb7 {[%clk 0:02:52]} 14. Nc3 {[%clk 0:02:44]}  Ne4 {[%clk 0:02:51]} 15. Nxe4 {[%clk 0:02:39]}  Bxe4 {[%clk 0:02:42]} 16. Bf4 {[%clk 0:02:34]}  Qf5 {[%clk 0:02:41]} 17. f3 {[%clk 0:02:29]}  Bd5 {[%clk 0:02:39]} 18. Qxc7 {[%clk 0:02:23]}  Qe6 {[%clk 0:02:34]} 19. Qe5 {[%clk 0:02:16]}  Qb6+ {[%clk 0:02:19]} 20. Be3 {[%clk 0:02:08]}  Qb7 {[%clk 0:02:19]} 21. Bd4 {[%clk 0:02:04]}  f6 {[%clk 0:02:18]} 22. Qf4 {[%clk 0:01:52]}  Rfe8 {[%clk 0:02:09]} 23. e4 {[%clk 0:01:43]}  Bf7 {[%clk 0:02:07]} 24. Rac1 {[%clk 0:01:36]}  a5 {[%clk 0:01:55]} 25. Rc7 {[%clk 0:01:28]}  Qb4 {[%clk 0:01:55]} 26. Qe3 {[%clk 0:01:04]}  a4 {[%clk 0:01:35]} 27. a3 {[%clk 0:01:02]}  Qb5 {[%clk 0:01:31]} 28. Rfc1 {[%clk 0:00:59]}  Rad8 {[%clk 0:01:28]} 29. Ra7 {[%clk 0:00:51]}  Rd7 {[%clk 0:01:11]} 30. Rcc7 {[%clk 0:00:45]}  Rxc7 {[%clk 0:01:09]} 31. Rxc7 {[%clk 0:00:45]}  h5 {[%clk 0:01:04]} 32. h4 {[%clk 0:00:43]}  Rd8 {[%clk 0:01:02]} 33. Kf2 {[%clk 0:00:40]}  Qa5 {[%clk 0:00:58]} 34. Qc3 {[%clk 0:00:36]}  Qb5 {[%clk 0:00:48]} 35. Ra7 {[%clk 0:00:30]}  Qe8 {[%clk 0:00:40]} 36. Qc7 {[%clk 0:00:21]}  Rxd4 {[%clk 0:00:36]} 37. Ke3 {[%clk 0:00:09]}  Rd8 {[%clk 0:00:34]} 38. Rxa4 {[%clk 0:00:07]}  Rc8 {[%clk 0:00:32]} 39. Qa7 {[%clk 0:00:05]}  Qb5 {[%clk 0:00:28]} 40. Rb4 {[%clk 0:00:04]}  Qf1 {[%clk 0:00:28]} 41. Qd7 {[%clk 0:00:03]}  Qe1+ {[%clk 0:00:25]} 42. Kd3 {[%clk 0:00:02]}  Qd1+ {[%clk 0:00:24]} 0-1


[Site "https://www.chess.com"]

[Event "Titled Tuesday Blitz November 15 Early 2022"]
[White "Shimanov, Aleksandr"]
[Black "Ginzburg, Yakov"]
[WhiteFideId "4198603"]
[BlackFideId "4157176"]
[WhiteElo "2605"]
[BlackElo "2305"]
[Result "1-0"]
[Round "08"]
[TimeControl "180+1"]
[Date "2022.11.15"]
[WhiteClock "0:00:16"]
[BlackClock "0:00:04"]

1. e4 {[%clk 0:03:00]}  c5 {[%clk 0:02:58]} 2. Nf3 {[%clk 0:03:00]}  e6 {[%clk 0:02:58]} 3. c4 {[%clk 0:02:54]}  Nc6 {[%clk 0:02:54]} 4. Nc3 {[%clk 0:02:54]}  Nf6 {[%clk 0:02:53]} 5. Be2 {[%clk 0:02:54]}  d5 {[%clk 0:02:52]} 6. exd5 {[%clk 0:02:54]}  exd5 {[%clk 0:02:52]} 7. d4 {[%clk 0:02:55]}  cxd4 {[%clk 0:02:47]} 8. Nxd4 {[%clk 0:02:54]}  Bb4 {[%clk 0:02:41]} 9. O-O {[%clk 0:02:52]}  O-O {[%clk 0:02:39]} 10. Bg5 {[%clk 0:02:42]}  dxc4 {[%clk 0:02:15]} 11. Nxc6 {[%clk 0:02:40]}  bxc6 {[%clk 0:02:14]} 12. Bxc4 {[%clk 0:02:39]}  Bxc3 {[%clk 0:02:03]} 13. bxc3 {[%clk 0:02:37]}  Qxd1 {[%clk 0:02:02]} 14. Rfxd1 {[%clk 0:02:36]}  Ne4 {[%clk 0:02:02]} 15. Be3 {[%clk 0:02:11]}  Nxc3 {[%clk 0:01:53]} 16. Rd6 {[%clk 0:02:10]}  Nd5 {[%clk 0:01:36]} 17. Bc5 {[%clk 0:01:25]}  Be6 {[%clk 0:01:35]} 18. Ba6 {[%clk 0:01:26]}  Rfd8 {[%clk 0:01:10]} 19. Rxc6 {[%clk 0:01:13]}  h6 {[%clk 0:00:40]} 20. h3 {[%clk 0:01:11]}  Nf4 {[%clk 0:00:37]} 21. Bf1 {[%clk 0:01:04]}  Bd5 {[%clk 0:00:18]} 22. Rd6 {[%clk 0:01:03]}  Rxd6 {[%clk 0:00:16]} 23. Bxd6 {[%clk 0:01:04]}  Ne6 {[%clk 0:00:16]} 24. a3 {[%clk 0:01:02]}  Rd8 {[%clk 0:00:16]} 25. Bb4 {[%clk 0:01:01]}  Nd4 {[%clk 0:00:11]} 26. Rc1 {[%clk 0:00:58]}  Be6 {[%clk 0:00:07]} 27. Rc7 {[%clk 0:00:48]}  Rd7 {[%clk 0:00:06]} 28. Rxd7 {[%clk 0:00:29]}  Bxd7 {[%clk 0:00:06]} 29. Bc5 {[%clk 0:00:29]}  Nb5 {[%clk 0:00:05]} 30. f4 {[%clk 0:00:24]}  a6 {[%clk 0:00:04]} 31. Kf2 {[%clk 0:00:24]}  f6 {[%clk 0:00:04]} 32. Ke3 {[%clk 0:00:24]}  Kf7 {[%clk 0:00:04]} 33. g4 {[%clk 0:00:24]}  Ke6 {[%clk 0:00:04]} 34. Bc4# {[%clk 0:00:16]} 1-0


[Site "https://www.chess.com"]

[Event "Titled Tuesday Blitz November 15 Early 2022"]
[White "Simonovic, Miroslav"]
[Black "Guimaraes, Wagner Peixoto"]
[WhiteFideId "919152"]
[BlackFideId "2100940"]
[WhiteElo "2043"]
[BlackElo "2231"]
[Result "1/2-1/2"]
[Round "08"]
[TimeControl "180+1"]
[Date "2022.11.16"]
[WhiteClock "0:00:05"]
[BlackClock "0:00:06"]

1. d4 {[%clk 0:03:00]}  Nf6 {[%clk 0:02:56]} 2. Bg5 {[%clk 0:03:01]}  c5 {[%clk 0:02:53]} 3. Bxf6 {[%clk 0:03:01]}  gxf6 {[%clk 0:02:54]} 4. c3 {[%clk 0:03:01]}  d5 {[%clk 0:02:52]} 5. e3 {[%clk 0:03:01]}  Nc6 {[%clk 0:02:52]} 6. Nd2 {[%clk 0:02:54]}  Qb6 {[%clk 0:02:50]} 7. Qb3 {[%clk 0:02:54]}  c4 {[%clk 0:02:48]} 8. Qxb6 {[%clk 0:02:52]}  axb6 {[%clk 0:02:49]} 9. e4 {[%clk 0:02:46]}  e6 {[%clk 0:02:49]} 10. exd5 {[%clk 0:02:46]}  exd5 {[%clk 0:02:50]} 11. g3 {[%clk 0:02:43]}  Be6 {[%clk 0:02:49]} 12. Bg2 {[%clk 0:02:43]}  b5 {[%clk 0:02:48]} 13. Ne2 {[%clk 0:02:41]}  Bh6 {[%clk 0:02:42]} 14. f4 {[%clk 0:02:29]}  b4 {[%clk 0:02:32]} 15. Nf3 {[%clk 0:02:29]}  bxc3 {[%clk 0:02:31]} 16. Nxc3 {[%clk 0:02:30]}  Nb4 {[%clk 0:02:27]} 17. Kd2 {[%clk 0:02:26]}  Nd3 {[%clk 0:02:24]} 18. Nd1 {[%clk 0:02:17]}  Rg8 {[%clk 0:02:23]} 19. Bf1 {[%clk 0:02:05]}  Bf5 {[%clk 0:02:11]} 20. Ne1 {[%clk 0:01:57]}  Nxe1 {[%clk 0:02:01]} 21. Kxe1 {[%clk 0:01:58]}  Be4 {[%clk 0:02:02]} 22. Rg1 {[%clk 0:01:55]}  Bxf4 {[%clk 0:02:00]} 23. Nf2 {[%clk 0:01:55]}  Be3 {[%clk 0:01:57]} 24. Nxe4 {[%clk 0:01:49]}  dxe4 {[%clk 0:01:51]} 25. Rg2 {[%clk 0:01:45]}  b5 {[%clk 0:01:44]} 26. Re2 {[%clk 0:01:35]}  Bxd4 {[%clk 0:01:44]} 27. Rxe4+ {[%clk 0:01:35]}  Be5 {[%clk 0:01:44]} 28. a4 {[%clk 0:01:29]}  Kd7 {[%clk 0:01:33]} 29. Rd1+ {[%clk 0:01:26]}  Kc7 {[%clk 0:01:31]} 30. axb5 {[%clk 0:01:27]}  Rge8 {[%clk 0:01:24]} 31. Rxc4+ {[%clk 0:01:25]}  Kb6 {[%clk 0:01:20]} 32. Rc6+ {[%clk 0:01:24]}  Ka5 {[%clk 0:01:20]} 33. Kf2 {[%clk 0:01:10]}  Bxb2 {[%clk 0:01:12]} 34. Rd7 {[%clk 0:01:06]}  Rad8 {[%clk 0:01:01]} 35. Ra6+ {[%clk 0:00:58]}  Kb4 {[%clk 0:01:00]} 36. Rxf7 {[%clk 0:00:43]}  Rd2+ {[%clk 0:00:55]} 37. Kf3 {[%clk 0:00:43]}  Bd4 {[%clk 0:00:53]} 38. Kg4 {[%clk 0:00:12]}  Re1 {[%clk 0:00:40]} 39. Raxf6 {[%clk 0:00:08]}  Bxf6 {[%clk 0:00:23]} 40. Rxf6 {[%clk 0:00:09]}  Rxh2 {[%clk 0:00:21]} 41. b6 {[%clk 0:00:09]}  Re8 {[%clk 0:00:19]} 42. Bd3 {[%clk 0:00:07]}  Rb8 {[%clk 0:00:15]} 43. Be4 {[%clk 0:00:06]}  Re2 {[%clk 0:00:13]} 44. Bf3 {[%clk 0:00:06]}  Re7 {[%clk 0:00:12]} 45. b7 {[%clk 0:00:06]}  Rg7+ {[%clk 0:00:11]} 46. Kh4 {[%clk 0:00:06]}  Rgxb7 {[%clk 0:00:08]} 47. Bxb7 {[%clk 0:00:05]}  Rxb7 {[%clk 0:00:09]} 48. g4 {[%clk 0:00:04]}  Rg7 {[%clk 0:00:09]} 49. Kh5 {[%clk 0:00:04]}  Kc5 {[%clk 0:00:09]} 50. g5 {[%clk 0:00:03]}  Kd5 {[%clk 0:00:09]} 51. Kh6 {[%clk 0:00:03]}  Ra7 {[%clk 0:00:08]} 52. Rf8 {[%clk 0:00:03]}  Ke5 {[%clk 0:00:07]} 53. Rh8 {[%clk 0:00:03]}  Kf5 {[%clk 0:00:06]} 54. Rxh7 {[%clk 0:00:04]}  Rxh7+ {[%clk 0:00:06]} 55. Kxh7 {[%clk 0:00:05]}  Kxg5 {[%clk 0:00:06]} 1/2-1/2


[Site "https://www.chess.com"]

[Event "Titled Tuesday Blitz November 15 Early 2022"]
[White "Sourath Biswas"]
[Black "Begunov, Konstantin"]
[WhiteFideId "35091484"]
[BlackFideId "4118510"]
[WhiteElo "2164"]
[BlackElo "2140"]
[Result "0-1"]
[Round "08"]
[TimeControl "180+1"]
[Date "2022.11.16"]
[WhiteClock "0:00:02"]
[BlackClock "0:00:12"]

1. d4 {[%clk 0:03:00]}  d5 {[%clk 0:03:00]} 2. Bf4 {[%clk 0:03:01]}  c6 {[%clk 0:03:00]} 3. e3 {[%clk 0:03:02]}  Nf6 {[%clk 0:03:00]} 4. Nf3 {[%clk 0:03:02]}  Bg4 {[%clk 0:03:00]} 5. c4 {[%clk 0:03:02]}  e6 {[%clk 0:03:00]} 6. Qb3 {[%clk 0:03:00]}  Qb6 {[%clk 0:03:00]} 7. Nc3 {[%clk 0:03:00]}  Bxf3 {[%clk 0:02:59]} 8. gxf3 {[%clk 0:03:00]}  Nbd7 {[%clk 0:02:56]} 9. c5 {[%clk 0:03:01]}  Qxb3 {[%clk 0:02:56]} 10. axb3 {[%clk 0:03:02]}  Nh5 {[%clk 0:02:52]} 11. Bc7 {[%clk 0:03:02]}  Rc8 {[%clk 0:02:50]} 12. Be5 {[%clk 0:03:01]}  Nxe5 {[%clk 0:02:49]} 13. dxe5 {[%clk 0:03:01]}  Bxc5 {[%clk 0:02:48]} 14. f4 {[%clk 0:03:01]}  g6 {[%clk 0:02:43]} 15. b4 {[%clk 0:03:01]}  Bxb4 {[%clk 0:02:25]} 16. Rxa7 {[%clk 0:03:01]}  Rb8 {[%clk 0:02:23]} 17. Be2 {[%clk 0:02:56]}  Ng7 {[%clk 0:02:23]} 18. O-O {[%clk 0:02:56]}  Bc5 {[%clk 0:02:21]} 19. Ra4 {[%clk 0:02:55]}  Kd7 {[%clk 0:02:21]} 20. Rfa1 {[%clk 0:02:52]}  Nf5 {[%clk 0:02:15]} 21. b4 {[%clk 0:02:42]}  Bb6 {[%clk 0:02:12]} 22. Rd1 {[%clk 0:02:35]}  Kc7 {[%clk 0:02:11]} 23. b5 {[%clk 0:02:34]}  Ra8 {[%clk 0:02:05]} 24. bxc6 {[%clk 0:02:26]}  bxc6 {[%clk 0:02:02]} 25. Rc1 {[%clk 0:02:20]}  Rxa4 {[%clk 0:01:58]} 26. Nxa4 {[%clk 0:02:21]}  Ra8 {[%clk 0:01:56]} 27. Bb5 {[%clk 0:02:21]}  c5 {[%clk 0:01:52]} 28. Rb1 {[%clk 0:01:37]}  Ba7 {[%clk 0:01:49]} 29. Nc3 {[%clk 0:01:27]}  Rb8 {[%clk 0:01:39]} 30. Ra1 {[%clk 0:01:27]}  Bb6 {[%clk 0:01:38]} 31. Bd3 {[%clk 0:01:27]}  c4 {[%clk 0:01:32]} 32. Bc2 {[%clk 0:01:13]}  d4 {[%clk 0:01:13]} 33. exd4 {[%clk 0:00:56]}  Nxd4 {[%clk 0:01:05]} 34. Be4 {[%clk 0:00:54]}  Bc5 {[%clk 0:00:46]} 35. Kg2 {[%clk 0:00:54]}  Rb3 {[%clk 0:00:44]} 36. Rc1 {[%clk 0:00:53]}  Bb4 {[%clk 0:00:39]} 37. Na2 {[%clk 0:00:52]}  c3 {[%clk 0:00:27]} 38. Nxb4 {[%clk 0:00:51]}  Rxb4 {[%clk 0:00:28]} 39. Rxc3+ {[%clk 0:00:52]}  Kd7 {[%clk 0:00:27]} 40. Ra3 {[%clk 0:00:51]}  Nb5 {[%clk 0:00:25]} 41. Rd3+ {[%clk 0:00:49]}  Ke7 {[%clk 0:00:25]} 42. f3 {[%clk 0:00:39]}  Nd4 {[%clk 0:00:24]} 43. Rc3 {[%clk 0:00:33]}  f5 {[%clk 0:00:21]} 44. exf6+ {[%clk 0:00:26]}  Kxf6 {[%clk 0:00:20]} 45. Rc7 {[%clk 0:00:27]}  Rb2+ {[%clk 0:00:20]} 46. Kh3 {[%clk 0:00:27]}  h5 {[%clk 0:00:19]} 47. Rc8 {[%clk 0:00:24]}  Nf5 {[%clk 0:00:19]} 48. Rf8+ {[%clk 0:00:23]}  Kg7 {[%clk 0:00:19]} 49. Re8 {[%clk 0:00:22]}  Kf7 {[%clk 0:00:19]} 50. Ra8 {[%clk 0:00:20]}  Rf2 {[%clk 0:00:19]} 51. Ra7+ {[%clk 0:00:17]}  Kf6 {[%clk 0:00:19]} 52. Ra8 {[%clk 0:00:17]}  Nd4 {[%clk 0:00:19]} 53. Kg3 {[%clk 0:00:16]}  Rb2 {[%clk 0:00:18]} 54. Rf8+ {[%clk 0:00:16]}  Kg7 {[%clk 0:00:18]} 55. Rd8 {[%clk 0:00:15]}  Ne2+ {[%clk 0:00:17]} 56. Kh4 {[%clk 0:00:14]}  Nxf4 {[%clk 0:00:18]} 57. Kg5 {[%clk 0:00:13]}  Nh3+ {[%clk 0:00:18]} 58. Kh4 {[%clk 0:00:13]}  Nf2 {[%clk 0:00:18]} 59. Bc6 {[%clk 0:00:05]}  Rc2 {[%clk 0:00:17]} 60. Bb5 {[%clk 0:00:04]}  Rc5 {[%clk 0:00:16]} 61. Bd3 {[%clk 0:00:04]}  Rd5 {[%clk 0:00:15]} 62. Rxd5 {[%clk 0:00:04]}  exd5 {[%clk 0:00:14]} 63. Bb1 {[%clk 0:00:04]}  Kf6 {[%clk 0:00:14]} 64. Kg3 {[%clk 0:00:05]}  Nd1 {[%clk 0:00:14]} 65. Bd3 {[%clk 0:00:04]}  Ne3 {[%clk 0:00:13]} 66. f4 {[%clk 0:00:05]}  Nf5+ {[%clk 0:00:13]} 67. Kf3 {[%clk 0:00:04]}  Ke6 {[%clk 0:00:13]} 68. Bc2 {[%clk 0:00:03]}  Kd6 {[%clk 0:00:13]} 69. Bd3 {[%clk 0:00:02]}  Kc5 {[%clk 0:00:14]} 70. Ke2 {[%clk 0:00:01]}  Kd4 {[%clk 0:00:14]} 71. Kd2 {[%clk 0:00:02]}  Nh4 {[%clk 0:00:12]} 0-1


[Site "https://www.chess.com"]

[Event "Titled Tuesday Blitz November 15 Early 2022"]
[White "Storey, Charles H"]
[Black "Kleiman, Jake"]
[WhiteFideId "406686"]
[BlackFideId "2020041"]
[WhiteElo "2252"]
[BlackElo "2605"]
[Result "1-0"]
[Round "08"]
[TimeControl "180+1"]
[Date "2022.11.16"]
[WhiteClock "0:00:15"]
[BlackClock "0:00:04"]

1. c4 {[%clk 0:03:00]}  e6 {[%clk 0:02:59]} 2. g3 {[%clk 0:03:00]}  Nf6 {[%clk 0:02:57]} 3. Bg2 {[%clk 0:03:01]}  d5 {[%clk 0:02:56]} 4. Nf3 {[%clk 0:03:00]}  dxc4 {[%clk 0:02:57]} 5. Qa4+ {[%clk 0:02:58]}  c6 {[%clk 0:02:57]} 6. Qxc4 {[%clk 0:02:58]}  b5 {[%clk 0:02:58]} 7. Qc2 {[%clk 0:02:58]}  Bb7 {[%clk 0:02:59]} 8. d4 {[%clk 0:02:54]}  a6 {[%clk 0:02:59]} 9. O-O {[%clk 0:02:53]}  Nbd7 {[%clk 0:02:58]} 10. e4 {[%clk 0:02:52]}  c5 {[%clk 0:02:57]} 11. e5 {[%clk 0:02:52]}  Nd5 {[%clk 0:02:56]} 12. Bg5 {[%clk 0:02:45]}  Qb6 {[%clk 0:02:56]} 13. dxc5 {[%clk 0:02:21]}  Bxc5 {[%clk 0:02:55]} 14. Nc3 {[%clk 0:02:19]}  h6 {[%clk 0:02:43]} 15. Nxd5 {[%clk 0:02:05]}  Bxd5 {[%clk 0:02:43]} 16. Bf4 {[%clk 0:02:04]}  O-O {[%clk 0:02:27]} 17. h4 {[%clk 0:02:04]}  Qb7 {[%clk 0:02:17]} 18. Ne1 {[%clk 0:01:57]}  Rfd8 {[%clk 0:02:10]} 19. Bxd5 {[%clk 0:01:52]}  Qxd5 {[%clk 0:02:10]} 20. Rd1 {[%clk 0:01:49]}  Qc4 {[%clk 0:01:50]} 21. Qxc4 {[%clk 0:01:41]}  bxc4 {[%clk 0:01:51]} 22. Rc1 {[%clk 0:01:28]}  Nb6 {[%clk 0:01:49]} 23. Ng2 {[%clk 0:01:22]}  Bd4 {[%clk 0:01:38]} 24. Rc2 {[%clk 0:01:20]}  Rd5 {[%clk 0:01:32]} 25. Ne3 {[%clk 0:01:17]}  Rc5 {[%clk 0:01:26]} 26. Rfc1 {[%clk 0:01:14]}  Rac8 {[%clk 0:01:26]} 27. Rd1 {[%clk 0:01:08]}  Bxe5 {[%clk 0:01:20]} 28. Bxe5 {[%clk 0:01:03]}  Rxe5 {[%clk 0:01:21]} 29. Rd6 {[%clk 0:00:57]}  Rb5 {[%clk 0:01:22]} 30. b3 {[%clk 0:00:55]}  cxb3 {[%clk 0:01:02]} 31. Rxc8+ {[%clk 0:00:51]}  Nxc8 {[%clk 0:01:02]} 32. Rd8+ {[%clk 0:00:51]}  Kh7 {[%clk 0:01:02]} 33. axb3 {[%clk 0:00:48]}  Nb6 {[%clk 0:01:01]} 34. Rb8 {[%clk 0:00:35]}  Nd5 {[%clk 0:00:53]} 35. Rxb5 {[%clk 0:00:21]}  axb5 {[%clk 0:00:54]} 36. Nxd5 {[%clk 0:00:21]}  exd5 {[%clk 0:00:54]} 37. h5 {[%clk 0:00:21]}  g6 {[%clk 0:00:51]} 38. Kf1 {[%clk 0:00:21]}  gxh5 {[%clk 0:00:43]} 39. Ke2 {[%clk 0:00:22]}  Kg6 {[%clk 0:00:43]} 40. Kd3 {[%clk 0:00:22]}  Kf5 {[%clk 0:00:41]} 41. Kd4 {[%clk 0:00:20]}  Ke6 {[%clk 0:00:22]} 42. Kc5 {[%clk 0:00:18]}  Ke5 {[%clk 0:00:21]} 43. Kxb5 {[%clk 0:00:17]}  d4 {[%clk 0:00:17]} 44. Kc4 {[%clk 0:00:16]}  Ke4 {[%clk 0:00:15]} 45. b4 {[%clk 0:00:16]}  f5 {[%clk 0:00:09]} 46. b5 {[%clk 0:00:16]}  d3 {[%clk 0:00:07]} 47. Kc3 {[%clk 0:00:16]}  Kf3 {[%clk 0:00:02]} 48. Kxd3 {[%clk 0:00:15]}  Kxf2 {[%clk 0:00:03]} 49. b6 {[%clk 0:00:15]}  f4 {[%clk 0:00:03]} 50. gxf4 {[%clk 0:00:15]}  h4 {[%clk 0:00:03]} 51. b7 {[%clk 0:00:15]}  h3 {[%clk 0:00:04]} 52. b8=Q {[%clk 0:00:15]} 1-0


[Site "https://www.chess.com"]

[Event "Titled Tuesday Blitz November 15 Early 2022"]
[White "Svane, Frederik"]
[Black "Indjic, Aleksandar"]
[WhiteFideId "12923044"]
[BlackFideId "911925"]
[WhiteElo "2466"]
[BlackElo "2592"]
[Result "1-0"]
[Round "08"]
[TimeControl "180+1"]
[Date "2022.11.15"]
[WhiteClock "0:00:15"]
[BlackClock "0:00:12"]

1. e4 {[%clk 0:03:00]}  d6 {[%clk 0:02:56]} 2. d4 {[%clk 0:03:00]}  Nf6 {[%clk 0:02:57]} 3. Nc3 {[%clk 0:03:00]}  e5 {[%clk 0:02:57]} 4. Nge2 {[%clk 0:02:59]}  Be7 {[%clk 0:02:56]} 5. h3 {[%clk 0:02:57]}  c6 {[%clk 0:02:55]} 6. g4 {[%clk 0:02:56]}  b5 {[%clk 0:02:53]} 7. a3 {[%clk 0:02:54]}  Bb7 {[%clk 0:02:46]} 8. Bg2 {[%clk 0:02:54]}  a5 {[%clk 0:02:46]} 9. Ng3 {[%clk 0:02:47]}  g6 {[%clk 0:02:44]} 10. Bh6 {[%clk 0:02:42]}  b4 {[%clk 0:02:07]} 11. Nce2 {[%clk 0:02:38]}  c5 {[%clk 0:01:54]} 12. d5 {[%clk 0:02:31]}  Bf8 {[%clk 0:01:51]} 13. Be3 {[%clk 0:02:29]}  h5 {[%clk 0:01:50]} 14. gxh5 {[%clk 0:02:25]}  Nxh5 {[%clk 0:01:49]} 15. Nxh5 {[%clk 0:02:20]}  Rxh5 {[%clk 0:01:50]} 16. Ng3 {[%clk 0:02:20]}  Rh4 {[%clk 0:01:50]} 17. Qd2 {[%clk 0:02:20]}  Be7 {[%clk 0:01:43]} 18. f4 {[%clk 0:02:10]}  exf4 {[%clk 0:01:34]} 19. Bxf4 {[%clk 0:02:10]}  Nd7 {[%clk 0:01:34]} 20. O-O {[%clk 0:02:10]}  Rxf4 {[%clk 0:01:33]} 21. Qxf4 {[%clk 0:02:08]}  Ne5 {[%clk 0:01:33]} 22. Qh6 {[%clk 0:02:00]}  Kd7 {[%clk 0:01:24]} 23. Qg7 {[%clk 0:01:42]}  Qe8 {[%clk 0:01:17]} 24. axb4 {[%clk 0:01:39]}  cxb4 {[%clk 0:01:15]} 25. Rf2 {[%clk 0:01:33]}  Bh4 {[%clk 0:01:09]} 26. Raf1 {[%clk 0:01:26]}  Ke7 {[%clk 0:01:04]} 27. Kh2 {[%clk 0:01:22]}  Qg8 {[%clk 0:00:56]} 28. Qh6 {[%clk 0:01:14]}  Qh8 {[%clk 0:00:55]} 29. Qe3 {[%clk 0:01:13]}  Ng4+ {[%clk 0:00:54]} 30. hxg4 {[%clk 0:01:08]}  Bg5+ {[%clk 0:00:54]} 31. Bh3 {[%clk 0:01:07]}  Bxe3 {[%clk 0:00:54]} 32. Rxf7+ {[%clk 0:01:07]}  Ke8 {[%clk 0:00:42]} 33. Rxb7 {[%clk 0:01:04]}  Qxb2 {[%clk 0:00:36]} 34. Rff7 {[%clk 0:01:01]}  Qxc2+ {[%clk 0:00:20]} 35. Bg2 {[%clk 0:01:01]}  Bg5 {[%clk 0:00:20]} 36. Rg7 {[%clk 0:00:53]}  Bh6 {[%clk 0:00:20]} 37. Rge7+ {[%clk 0:00:44]}  Kd8 {[%clk 0:00:20]} 38. Rh7 {[%clk 0:00:43]}  Kc8 {[%clk 0:00:20]} 39. Rbf7 {[%clk 0:00:36]}  Qc3 {[%clk 0:00:12]} 40. e5 {[%clk 0:00:32]}  Qxe5 {[%clk 0:00:11]} 41. Rxh6 {[%clk 0:00:27]}  Qe8 {[%clk 0:00:12]} 42. Rfh7 {[%clk 0:00:21]}  a4 {[%clk 0:00:12]} 43. Rh8 {[%clk 0:00:21]}  Qxh8 {[%clk 0:00:12]} 44. Rxh8+ {[%clk 0:00:22]}  Kb7 {[%clk 0:00:13]} 45. Rxa8 {[%clk 0:00:21]}  Kxa8 {[%clk 0:00:14]} 46. Be4 {[%clk 0:00:20]}  b3 {[%clk 0:00:14]} 47. Ne2 {[%clk 0:00:14]}  a3 {[%clk 0:00:15]} 48. Nd4 {[%clk 0:00:14]}  b2 {[%clk 0:00:11]} 49. Bb1 {[%clk 0:00:14]}  a2 {[%clk 0:00:12]} 50. Bxa2 {[%clk 0:00:15]}  b1=Q {[%clk 0:00:12]} 51. Bxb1 {[%clk 0:00:15]} 1-0


[Site "https://www.chess.com"]